bitfinex/quotes_SOLUSD_20240905
["timestamp","ask_amount","ask_price","bid_price","bid_amount"]
[1725554724449,7.6401,130.89,130.84,9.17093955]
[1725554724616,20.0,130.88,130.84,9.17093955]
[1725554725020,7.6435,130.83,130.81,391.2]
[1725554725326,7.6422,130.86,130.82,1.52865203]
[1725554725530,27.6424,130.85,130.8,14.0975]
[1725554727241,27.6424,130.85,130.81,1.528606]
[1725554728018,27.6424,130.85,130.81,9.173206]
[1725554728323,27.6424,130.85,130.81,7.6446]
[1725554729337,20.0,130.85,130.82,7.644]
[1725554729712,20.0,130.85,130.8,14.097]
[1725554729910,27.6423,130.85,130.81,52.6446]
[1725554730140,20.0,130.85,130.8,14.0975]
[1725554730443,7.6416,130.87,130.82,7.6436]
[1725554730621,20.0,130.86,130.82,7.6436]
[1725554730818,7.6427,130.85,130.81,26.7551]
[1725554731217,27.643,130.84,130.78,50.41196132]
[1725554731430,20.0,130.86,130.78,19.1149]
[1725554731431,7.6443,130.82,130.78,19.1149]
[1725554731720,7.6447,130.81,130.78,19.1149]
[1725554732336,7.6447,130.81,130.77,28.9722]
[1725554732337,7.6458,130.79,130.77,6.1261]
[1725554732547,19.1092,130.83,130.75,26.767]
[1725554732745,7.6454,130.8,130.76,7.6475]
[1725554732925,7.6459,130.79,130.76,1.52920558]
[1725554733128,7.6454,130.8,130.77,1.52920558]
[1725554733435,7.6448,130.81,130.77,9.17610558]
[1725554733632,20.0,130.8,130.77,9.17610558]
[1725554734150,20.0,130.8,130.78,1.52904224]
[1725554734318,20.0,130.8,130.77,7.6469]
[1725554735148,20.0,130.8,130.76,7.6473]
[1725554735319,27.6452,130.8,130.76,7.6473]
[1725554735715,7.6441,130.82,130.77,19.1167]
[1725554736029,7.6441,130.82,130.77,26.7636]
[1725554736233,20.0,130.81,130.77,26.7636]
[1725554736433,27.6447,130.81,130.77,26.7636]
[1725554736625,27.6447,130.81,130.8,2.0]
[1725554737024,20.0,130.81,130.8,2.0]
[1725554737346,19.1055,130.86,130.8,2.0]
[1725554737731,20.0,130.85,130.8,3.52883141]
[1725554737935,20.0,130.85,130.8,2.0]
[1725554738254,20.0,130.85,130.8,9.645]
[1725554738923,20.0,130.85,130.81,19.1114]
[1725554739127,20.0,130.88,130.81,19.1114]
[1725554740044,7.6432,130.84,130.81,19.1114]
[1725554740353,20.0,130.83,130.8,9.6448]
[1725554741154,27.6435,130.83,130.8,2.0]
[1725554742255,7.6446,130.81,130.8,2.0]
[1725554742420,27.6446,130.81,130.8,2.0]
[1725554747824,7.6416,130.87,130.83,7.6433]
[1725554748029,16.2258,130.9,130.83,7.6433]
[1725554748030,16.2258,130.9,130.84,1.52853454]
[1725554748244,7.6403,130.89,130.84,9.17103454]
[1725554749591,19.0983,130.91,130.84,9.17103454]
[1725554749592,7.6395,130.9,130.85,7.6422]
[1725554749871,22.2727,130.93,130.86,52.6412]
[1725554749872,25.87363391,130.93,130.86,52.6412]
[1725554750166,22.2727,130.93,130.86,9.16922618]
[1725554750339,7.639,130.91,130.87,7.6411]
[1725554750546,7.6395,130.9,130.85,19.1054]
[1725554750764,7.639,130.91,130.86,1.52803591]
[1725554751066,7.639,130.91,130.86,7.6416]
[1725554751293,7.6396,130.9,130.85,26.7476]
[1725554751971,22.2727,130.93,130.83,7.643]
[1725554752272,7.6407,130.88,130.83,7.643]
[1725554752468,7.6407,130.88,130.83,9.17140171]
[1725554753170,7.6407,130.88,130.83,7.643]
[1725554753347,84.0963,130.92,130.82,19.1096]
[1725554753348,27.6412,130.87,130.82,19.1096]
[1725554753543,20.0,130.86,130.82,26.7534]
[1725554753847,20.0,130.86,130.82,28.28190865]
[1725554754056,20.0,130.86,130.83,9.1715056]
[1725554754249,20.0,130.87,130.83,7.643]
[1725554754942,20.0,130.87,130.83,9.17126152]
[1725554756453,20.0,130.87,130.84,7.6429]
[1725554758055,27.6415,130.87,130.83,7.6433]
[1725554759276,27.6415,130.87,130.83,9.17171789]
[1725554759770,27.6415,130.87,130.83,7.6433]
[1725554760073,27.6415,130.87,130.83,9.17171822]
[1725554760247,27.6415,130.87,130.83,7.6433]
[1725554763777,7.6378,130.93,130.87,14.1608]
[1725554763963,7.6384,130.92,130.87,14.1608]
[1725554764165,20.0,130.91,130.87,14.1608]
[1725554764575,20.0,130.92,130.87,14.1608]
[1725554764989,27.6384,130.92,130.87,14.1608]
[1725554765181,7.6384,130.92,130.87,14.1608]
[1725554765378,20.0,130.91,130.87,14.1608]
[1725554766774,20.0,130.91,130.88,1.5279049]
[1725554768169,20.0,130.91,130.87,14.1608]
[1725554768369,27.639,130.91,130.86,7.6416]
[1725554768694,20.0,130.91,130.87,7.6409]
[1725554769593,27.639,130.91,130.87,7.6409]
[1725554770672,27.639,130.91,130.86,7.6416]
[1725554770996,7.6399,130.9,130.85,26.7469]
[1725554773080,20.0,130.91,130.87,7.6409]
[1725554773288,20.0,130.93,130.86,1.52816964]
[1725554773695,7.64,130.89,130.85,26.7468]
[1725554773996,19.0964,130.92,130.85,20.63285819]
[1725554774204,20.0,130.91,130.85,19.1047]
[1725554774702,7.6398,130.9,130.86,7.6417]
[1725554774873,7.6403,130.89,130.85,19.1047]
[1725554775073,27.6393,130.91,130.85,19.1047]
[1725554775275,7.6399,130.9,130.86,7.6412]
[1725554777078,20.0,130.91,130.87,9.16902981]
[1725554777079,27.639,130.91,130.87,9.16902981]
[1725554777804,27.639,130.91,130.88,1.52802705]
[1725554778405,20.0,130.91,130.88,9.16852705]
[1725554778791,20.0,130.91,130.88,7.6405]
[1725554779397,27.6389,130.91,130.88,7.6405]
[1725554779604,27.6389,130.91,130.87,26.7438]
[1725554779605,20.0,130.91,130.87,26.7438]
[1725554779805,20.0,130.94,130.87,26.7438]
[1725554780813,20.0,130.94,130.88,7.6405]
[1725554780814,7.639,130.91,130.88,7.6405]
[1725554781504,7.6378,130.93,130.89,9.16753446]
[1725554781813,7.6378,130.93,130.89,26.7393]
[1725554781814,20.0,130.92,130.89,26.7393]
[1725554781979,20.0,130.92,130.9,1.52768356]
[1725554782190,54.5463,131.01,130.9,1.52768356]
[1725554782191,24.0133,131.01,130.96,7.6358]
[1725554782387,7.6345,130.99,130.93,25.02049168]
[1725554782621,21.7729,131.05,130.94,36.6522287]
[1725554782793,7.633,131.01,130.96,7.6353]
[1725554782994,7.633,131.01,130.97,1.52683411]
[1725554783219,21.7729,131.05,130.97,9.16193411]
[1725554783520,7.6335,131.01,130.95,7.6363]
[1725554783707,7.6335,131.01,130.96,1.5269155]
[1725554783902,7.6335,131.01,130.95,9.1632398]
[1725554784122,7.6335,131.01,130.96,1.5269398]
[1725554784489,21.7729,131.05,130.94,35.1252]
[1725554784715,7.6344,130.99,130.94,35.1252]
[1725554785023,0.8589171,131.04,130.95,1.52711493]
[1725554785192,7.6329,131.02,130.96,7.6354]
[1725554785519,7.6329,131.02,130.96,9.16231615]
[1725554785722,20.0,131.01,130.96,9.16231615]
[1725554786423,27.6331,131.01,130.96,9.16231615]
[1725554786925,20.0,131.01,130.97,6.1099]
[1725554787226,7.6318,131.03,130.98,1.52664611]
[1725554787227,20.0,131.02,130.98,1.52664611]
[1725554788426,20.0,131.02,130.98,9.16134611]
[1725554788623,20.0,131.02,130.97,13.7451]
[1725554788809,7.6327,131.02,130.97,13.7451]
[1725554789012,20.0,131.01,130.97,13.7451]
[1725554789220,20.0,131.01,130.97,15.27192506]
[1725554789920,7.6318,131.03,130.98,7.6347]
[1725554790226,20.0,131.02,130.99,1.52657713]
[1725554790898,20.0,131.02,130.98,9.16127801]
[1725554791099,27.6326,131.02,130.97,13.7452]
[1725554791298,27.6326,131.02,130.97,15.27197389]
[1725554792401,7.633,131.01,130.97,15.27197389]
[1725554792600,7.633,131.01,130.97,13.7452]
[1725554793118,7.6337,131.0,130.97,6.1099]
[1725554793422,7.6333,131.01,130.96,26.7241]
[1725554793726,20.0,131.02,130.97,1.52677285]
[1725554793931,0.8589171,131.04,130.97,1.52677285]
[1725554794310,7.633,131.01,130.97,9.16187285]
[1725554794516,7.633,131.01,130.96,19.0887]
[1725554794517,7.633,131.01,130.96,26.7245]
[1725554795429,7.633,131.01,130.96,28.2514145]
[1725554796027,7.633,131.01,130.97,7.6351]
[1725554796205,7.633,131.01,130.96,26.7244]
[1725554796403,7.633,131.01,130.96,28.25131639]
[1725554796623,19.0801,131.03,130.96,19.0887]
[1725554796835,20.0,131.02,130.96,19.0887]
[1725554797336,7.6337,131.0,130.96,20.61574434]
[1725554797836,7.6342,130.99,130.96,20.61574434]
[1725554798633,7.6342,130.99,130.96,19.0887]
[1725554799442,20.0,131.02,130.97,1.52701938]
[1725554799739,20.8589171,131.04,130.96,19.0887]
[1725554800315,7.6335,131.01,130.97,7.6353]
[1725554800516,39.9371171,131.04,130.94,30.1349]
[1725554800517,7.6349,130.98,130.94,30.1349]
[1725554800733,20.0,131.0,130.95,1.52705302]
[1725554800933,7.6343,130.99,130.95,28.25405302]
[1725554801236,7.6343,130.99,130.96,1.52693879]
[1725554801537,7.6343,130.99,130.96,9.16283879]
[1725554802108,7.6343,130.99,130.96,1.52693879]
[1725554802337,20.0,131.0,130.91,22.6941]
[1725554802338,7.6374,130.94,130.91,22.6941]
[1725554802639,7.6372,130.94,130.91,22.6941]
[1725554803015,7.6389,130.91,130.88,22.9038]
[1725554803210,19.09,130.96,130.88,22.9038]
[1725554803211,7.6383,130.92,130.88,30.5441]
[1725554803839,7.6377,130.93,130.89,9.16770691]
[1725554804042,7.6377,130.93,130.89,9.16754922]
[1725554804340,7.6377,130.93,130.89,7.6399]
[1725554804542,7.6377,130.93,130.89,9.16764186]
[1725554804733,7.6377,130.93,130.89,7.6399]
[1725554805517,7.6377,130.93,130.89,9.1676438]
[1725554806354,7.6375,130.94,130.89,7.6399]
[1725554806543,27.6378,130.93,130.89,7.6399]
[1725554809636,7.6359,130.96,130.92,7.638]
[1725554809843,20.0,130.95,130.92,7.638]
[1725554810147,20.0,130.95,130.93,1.52734138]
[1725554810349,20.0,130.95,130.92,26.733]
[1725554813058,27.6365,130.95,130.92,19.095]
[1725554813936,27.6365,130.95,130.91,7.6386]
[1725554814954,27.6365,130.95,130.89,19.0986]
[1725554814955,7.6379,130.93,130.89,26.7382]
[1725554815254,7.6372,130.94,130.9,9.1666122]
[1725554815561,7.638,130.93,130.89,19.0986]
[1725554815742,7.638,130.93,130.9,7.6393]
[1725554815945,7.638,130.93,130.89,26.7383]
[1725554816150,7.6386,130.92,130.88,414.1038]
[1725554816453,7.6386,130.92,130.88,440.8452]
[1725554816844,7.6379,130.93,130.89,7.6399]
[1725554819352,7.6371,130.94,130.9,7.6393]
[1725554819558,7.6371,130.94,130.9,9.16702468]
[1725554819942,7.6371,130.94,130.9,7.6393]
[1725554820142,19.09,130.96,130.88,42.0052]
[1725554820343,7.6382,130.92,130.88,49.6452]
[1725554820643,7.6382,130.92,130.89,7.6399]
[1725554822576,19.09,130.96,130.84,21.7191]
[1725554822577,19.0928,130.94,130.84,21.7191]
[1725554822793,7.6415,130.87,130.84,21.7191]
[1725554822954,19.0973,130.91,130.84,21.7191]
[1725554823276,19.0973,130.91,130.82,26.7525]
[1725554823277,7.6418,130.86,130.82,26.7525]
[1725554823581,36.6305,130.9,130.81,21.6935]
[1725554823865,36.6305,130.9,130.82,7.6439]
[1725554824070,7.6424,130.85,130.81,21.6935]
[1725554824276,36.6305,130.9,130.81,21.6935]
[1725554824277,7.6419,130.86,130.81,29.3379]
[1725554824449,7.6423,130.85,130.81,29.3379]
[1725554824838,7.6418,130.86,130.82,1.52861311]
[1725554825054,7.6413,130.87,130.83,1.52847108]
[1725554825258,7.6404,130.89,130.84,7.6425]
[1725554825460,20.0,130.88,130.86,7.6414]
[1725554825671,20.0,130.88,130.85,1.52816638]
[1725554825672,20.0,130.9,130.85,7.6422]
[1725554825965,7.6401,130.89,130.84,26.7492]
[1725554826171,20.0,130.88,130.84,28.27736686]
[1725554827342,20.0,130.88,130.84,19.1065]
[1725554827550,20.0,130.92,130.82,7.6439]
[1725554827749,7.6421,130.86,130.81,48.4487]
[1725554828284,7.6421,130.86,130.82,7.6438]
[1725554829155,7.6421,130.86,130.82,7.644]
[1725554829353,19.0992,130.9,130.81,40.8042]
[1725554829549,45.0,130.91,130.8,9.6446]
[1725554829550,7.643,130.84,130.8,9.6446]
[1725554830772,7.6435,130.83,130.8,2.0]
[1725554831272,7.6442,130.82,130.8,2.0]
[1725554831864,7.6446,130.81,130.8,2.0]
[1725554832651,27.6446,130.81,130.8,2.0]
[1725554834160,7.6476,130.76,130.72,432.4901]
[1725554834469,7.6489,130.74,130.7,7.6509]
[1725554834845,7.6497,130.73,130.69,35.0547]
[1725554835064,35.1726,130.81,130.68,6.2396]
[1725554835065,27.65,130.72,130.68,13.8914]
[1725554835254,7.6505,130.71,130.68,6.2396]
[1725554835578,20.0,130.72,130.69,1.53035426]
[1725554835741,20.0,130.76,130.69,1.53035426]
[1725554836245,20.0,130.76,130.69,9.18195426]
[1725554836776,20.0,130.76,130.69,1.53035426]
[1725554836978,23.59727237,130.79,130.69,46.53035426]
[1725554838258,7.6482,130.75,130.71,7.6503]
[1725554838457,23.59727237,130.79,130.7,7.6509]
[1725554838458,7.6487,130.74,130.7,7.6509]
[1725554838664,7.6487,130.74,130.69,7.6515]
[1725554838969,7.6493,130.73,130.69,7.6515]
[1725554839160,7.6511,130.7,130.66,406.9495]
[1725554839341,7.6511,130.7,130.66,15.7495]
[1725554841185,7.6506,130.71,130.66,15.7495]
[1725554841478,27.6512,130.7,130.66,7.6532]
[1725554841781,7.6518,130.69,130.65,33.2671]
[1725554841965,20.0,130.7,130.66,9.18358571]
[1725554842172,7.6509,130.71,130.67,7.6528]
[1725554842476,20.0,130.7,130.67,7.6528]
[1725554845072,20.0,130.7,130.65,6.4791]
[1725554845283,7.65,130.72,130.68,7.6521]
[1725554845462,20.0,130.71,130.68,9.18257247]
[1725554845665,20.0,130.71,130.68,9.18249957]
[1725554845866,20.0,130.71,130.68,7.6522]
[1725554846880,20.0,130.71,130.69,7.6512]
[1725554847182,27.65,130.72,130.68,7.6521]
[1725554848481,7.6511,130.7,130.67,19.1308]
[1725554848685,7.6511,130.7,130.66,7.653]
[1725554849072,7.6518,130.69,130.65,14.133]
[1725554849272,35.3619,130.72,130.63,407.7576]
[1725554849482,7.6532,130.67,130.63,415.4124]
[1725554849674,20.0,130.66,130.63,415.4124]
[1725554850062,7.6514,130.7,130.66,7.6533]
[1725554850380,20.0,130.69,130.65,19.135]
[1725554850791,20.0,130.71,130.65,19.135]
[1725554851284,7.6523,130.68,130.65,19.135]
[1725554852083,7.6517,130.69,130.65,26.7886]
[1725554852281,20.0,130.68,130.66,7.6533]
[1725554852490,35.2119,130.76,130.67,19.132]
[1725554853583,7.6512,130.7,130.67,19.132]
[1725554853771,7.6507,130.71,130.67,26.7848]
[1725554853973,20.0,130.7,130.67,26.7848]
[1725554854183,7.6494,130.73,130.69,7.6512]
[1725554854483,7.6491,130.74,130.7,7.651]
[1725554854795,7.6494,130.73,130.69,43.0036]
[1725554854971,7.6499,130.72,130.69,35.3522]
[1725554855383,7.6506,130.71,130.68,6.661]
[1725554856366,7.6506,130.71,130.68,14.3132]
[1725554856566,20.0,130.7,130.68,6.661]
[1725554859800,20.0,130.74,130.68,33.4436]
[1725554860106,7.65,130.72,130.68,33.4436]
[1725554860291,20.0,130.71,130.68,33.4436]
[1725554860475,7.6495,130.73,130.69,9.18166818]
[1725554861202,7.6495,130.73,130.7,7.651]
[1725554861400,7.649,130.74,130.7,7.651]
[1725554861572,20.0,130.73,130.7,7.651]
[1725554861900,27.6494,130.73,130.69,7.6516]
[1725554862700,27.6494,130.73,130.66,78.96774085]
[1725554862701,20.0,130.73,130.66,34.7425]
[1725554862894,20.0,130.73,130.63,425.3682]
[1725554862895,51.6145,130.72,130.63,425.3682]
[1725554863092,20.0,130.71,130.63,425.3682]
[1725554863294,20.0,130.71,130.63,433.0233]
[1725554863295,7.6532,130.67,130.63,433.0233]
[1725554863494,20.0,130.66,130.63,433.0233]
[1725554863875,27.6535,130.66,130.63,425.3682]
[1725554865501,20.0,130.66,130.63,433.0233]
[1725554865681,27.6535,130.66,130.63,433.0233]
[1725554865876,20.0,130.66,130.63,433.0233]
[1725554868007,20.0,130.66,130.64,7.6546]
[1725554869592,20.0,130.67,130.64,7.6546]
[1725554870274,27.6529,130.67,130.63,41.8232]
[1725554871095,7.6535,130.66,130.63,19.1367]
[1725554871397,20.0,130.65,130.63,19.1367]
[1725554871606,27.654,130.65,130.62,7.6556]
[1725554871977,27.654,130.65,130.61,13.9144]
[1725554872603,7.6546,130.64,130.61,13.9144]
[1725554872900,20.0,130.63,130.61,6.2582]
[1725554873101,27.6552,130.63,130.61,6.2582]
[1725554873307,20.0,130.63,130.61,6.2582]
[1725554874396,20.0,130.63,130.61,7.78939494]
[1725554874603,20.0,130.63,130.61,6.2582]
[1725554876685,20.0,130.63,130.6,42.0882]
[1725554877005,27.6553,130.63,130.6,15.2904]
[1725554877204,7.6559,130.62,130.6,15.2904]
[1725554877804,27.6553,130.63,130.6,15.2904]
[1725554878685,27.6553,130.63,130.6,24.47860977]
[1725554879090,27.6553,130.63,130.6,22.9473]
[1725554879599,27.6553,130.63,130.6,15.2904]
[1725554880501,27.6553,130.63,130.59,7.6574]
[1725554881088,7.6558,130.62,130.59,7.6574]
[1725554881289,20.0,130.61,130.58,34.0050171]
[1725554881487,27.6566,130.61,130.58,26.3472171]
[1725554881705,7.6575,130.59,130.58,0.8589171]
[1725554882006,7.6575,130.59,130.51,33.0482]
[1725554882007,7.66,130.55,130.51,33.0482]
[1725554882514,20.0,130.54,130.51,33.0482]
[1725554883017,27.6605,130.54,130.51,33.0482]
[1725554883227,27.6605,130.54,130.51,25.3861]
[1725554883393,20.0,130.54,130.49,16.6296]
[1725554883582,64.1456,130.58,130.49,16.6296]
[1725554883583,20.0,130.57,130.49,16.6296]
[1725554883785,20.0,130.57,130.5,19.1566]
[1725554884519,7.66,130.55,130.51,7.6618]
[1725554884722,20.0,130.54,130.51,7.6618]
[1725554885828,20.0,130.54,130.52,9.19358517]
[1725554886000,7.6582,130.58,130.54,7.6601]
[1725554886423,7.6589,130.57,130.53,7.6609]
[1725554886796,7.6593,130.56,130.52,19.1532]
[1725554886996,7.6599,130.55,130.52,19.1532]
[1725554887197,19.1472,130.57,130.49,35.7868]
[1725554887506,7.6618,130.52,130.48,7.6639]
[1725554887925,20.0,130.51,130.48,7.6639]
[1725554888122,20.0,130.51,130.5,7.6628]
[1725554888306,7.6607,130.54,130.5,7.6628]
[1725554888512,20.0,130.53,130.5,7.6628]
[1725554888707,20.0,130.53,130.5,9.19518505]
[1725554888906,20.0,130.53,130.5,7.6628]
[1725554889411,20.0,130.53,130.51,7.662]
[1725554889603,27.6605,130.54,130.5,26.8195]
[1725554889806,27.6605,130.54,130.5,19.1569]
[1725554889807,7.6611,130.53,130.5,19.1569]
[1725554890020,20.0,130.52,130.5,19.1569]
[1725554891517,20.0,130.52,130.5,26.8195]
[1725554891715,20.0,130.53,130.5,26.8195]
[1725554891916,27.6611,130.53,130.5,26.8195]
[1725554892118,20.0,130.53,130.5,26.8195]
[1725554893118,20.0,130.53,130.51,7.662]
[1725554893325,20.0,130.54,130.51,7.662]
[1725554893914,20.0,130.54,130.5,19.1569]
[1725554894130,20.0,130.55,130.52,7.6615]
[1725554894308,22.5933,130.59,130.54,19.1505]
[1725554894309,7.6588,130.57,130.54,19.1505]
[1725554894512,7.6581,130.58,130.55,7.6598]
[1725554894825,7.6581,130.58,130.54,26.8107]
[1725554895207,7.6588,130.57,130.54,19.1505]
[1725554895731,20.0,130.56,130.54,26.8109]
[1725554896228,20.0,130.57,130.54,26.8109]
[1725554896718,20.0,130.57,130.56,26.8075]
[1725554897614,20.0,130.57,130.56,19.1482]
[1725554897827,20.0,130.57,130.56,26.8075]
[1725554898130,20.0,130.57,130.56,19.1482]
[1725554898930,20.0,130.57,130.56,26.8075]
[1725554899108,20.0,130.57,130.53,19.1519]
[1725554899309,20.0,130.58,130.54,7.6603]
[1725554899511,27.6583,130.58,130.54,7.6603]
[1725554899720,20.0,130.58,130.53,19.1519]
[1725554899934,19.1444,130.59,130.5,19.1563]
[1725554900234,7.6606,130.54,130.5,19.1563]
[1725554900441,20.0,130.53,130.5,26.819]
[1725554901230,20.0,130.53,130.5,28.35142452]
[1725554901439,20.0,130.53,130.5,26.819]
[1725554903459,20.0,130.53,130.5,26.819]
[1725554903811,7.6616,130.52,130.49,21.6449]
[1725554904034,20.0,130.51,130.48,7.6638]
[1725554905151,20.0,130.51,130.47,26.8245]
[1725554905443,20.0,130.51,130.48,7.6638]
[1725554907042,20.0,130.51,130.49,7.663]
[1725554907234,20.0,130.52,130.49,7.663]
[1725554907431,20.0,130.52,130.5,7.6627]
[1725554907631,20.0,130.53,130.5,7.6627]
[1725554908917,20.0,130.53,130.51,7.6622]
[1725554909140,7.6582,130.58,130.54,7.6603]
[1725554909330,7.6582,130.58,130.53,26.8131]
[1725554909720,7.6587,130.57,130.53,26.8131]
[1725554910841,20.0,130.56,130.53,26.8131]
[1725554911744,7.6583,130.58,130.54,7.6604]
[1725554911939,20.0,130.57,130.54,7.6604]
[1725554912344,27.6587,130.57,130.53,26.8131]
[1725554912636,7.6593,130.56,130.53,19.1523]
[1725554912843,20.0,130.57,130.5,19.1557]
[1725554912844,20.0,130.55,130.5,19.1557]
[1725554913151,7.6615,130.53,130.49,29.9109]
[1725554913748,20.0,130.52,130.49,29.9109]
[1725554914128,20.0,130.52,130.5,9.19511879]
[1725554914446,20.0,130.53,130.5,9.19511879]
[1725554914647,20.0,130.53,130.5,7.6627]
[1725554915942,20.0,130.53,130.5,9.19504778]
[1725554916247,20.0,130.53,130.5,7.6627]
[1725554917133,27.6611,130.53,130.5,7.6627]
[1725554917443,20.0,130.53,130.5,7.6627]
[1725554917824,7.6626,130.51,130.46,40.8415]
[1725554918143,7.6626,130.51,130.47,7.6643]
[1725554918348,27.6629,130.5,130.46,48.5064]
[1725554918556,7.6638,130.49,130.46,21.6797]
[1725554918728,27.6638,130.49,130.46,21.6797]
[1725554918925,7.6638,130.49,130.46,29.3448]
[1725554919125,7.663,130.5,130.46,29.3448]
[1725554919348,20.0,130.49,130.47,9.19733974]
[1725554919652,20.0,130.49,130.47,7.6645]
[1725554920021,20.0,130.5,130.47,7.6645]
[1725554921337,27.6629,130.5,130.46,48.5074]
[1725554921624,10.0,130.58,130.46,48.5074]
[1725554921625,19.149,130.56,130.48,19.1597]
[1725554921826,7.6605,130.54,130.5,7.6624]
[1725554922765,15.9797,130.57,130.51,7.6618]
[1725554922931,7.6603,130.55,130.51,7.6618]
[1725554923250,27.6605,130.54,130.5,26.8187]
[1725554923549,7.6605,130.54,130.5,26.8187]
[1725554923732,20.0,130.53,130.5,26.8187]
[1725554925355,27.6611,130.53,130.5,19.1561]
[1725554925535,20.0,130.53,130.5,28.35124395]
[1725554927936,27.6613,130.53,130.49,7.6633]
[1725554928142,20.0,130.52,130.49,7.6633]
[1725554928342,27.6617,130.52,130.48,26.8236]
[1725554928561,7.6623,130.51,130.48,19.1599]
[1725554928861,27.6623,130.51,130.48,19.1599]
[1725554929235,7.6618,130.52,130.48,26.8238]
[1725554930867,7.6614,130.53,130.49,7.6629]
[1725554931166,20.0,130.52,130.49,7.6629]
[1725554931466,20.0,130.52,130.49,9.19538034]
[1725554931672,27.6617,130.52,130.49,7.6629]
[1725554933348,20.0,130.52,130.49,7.663]
[1725554933573,20.0,130.52,130.48,19.1599]
[1725554934251,20.0,130.52,130.5,7.6627]
[1725554935172,20.0,130.52,130.49,7.6632]
[1725554935868,27.6616,130.52,130.49,7.6632]
[1725554937172,27.6616,130.52,130.48,26.8235]
[1725554937346,20.0,130.52,130.46,21.6797]
[1725554937545,19.1526,130.54,130.47,1.53256913]
[1725554937546,20.0,130.53,130.47,1.53256913]
[1725554937741,27.6612,130.53,130.49,7.6631]
[1725554938773,20.0,130.53,130.5,26.8195]
[1725554939064,20.0,130.53,130.51,7.662]
[1725554939448,20.0,130.53,130.51,9.19422039]
[1725554940252,20.0,130.53,130.5,26.8196]
[1725554940569,20.0,130.53,130.51,7.6619]
[1725554940774,20.0,130.54,130.51,7.6619]
[1725554941161,20.0,130.54,130.53,7.661]
[1725554941469,7.6589,130.57,130.53,7.661]
[1725554941676,7.6589,130.57,130.52,19.1541]
[1725554941677,7.6594,130.56,130.52,26.8153]
[1725554942081,7.6594,130.56,130.53,7.6609]
[1725554942295,7.6589,130.57,130.53,7.6609]
[1725554942581,20.0,130.56,130.53,7.6609]
[1725554943671,20.0,130.56,130.51,21.4695]
[1725554943979,7.6602,130.55,130.52,7.6615]
[1725554944463,7.6595,130.56,130.52,7.6615]
[1725554944672,20.0,130.55,130.52,7.6615]
[1725554945875,20.0,130.55,130.52,9.19365587]
[1725554946970,27.66,130.55,130.52,7.6615]
[1725554947173,20.0,130.55,130.52,9.19365871]
[1725554947356,20.0,130.55,130.52,7.6615]
[1725554947882,3.68040024,130.6,130.54,7.6604]
[1725554948055,7.6564,130.61,130.57,7.6581]
[1725554948373,7.6564,130.61,130.57,26.8048]
[1725554948677,7.6564,130.61,130.58,1.53150621]
[1725554949269,7.657,130.6,130.57,19.1467]
[1725554949580,34.1911,130.64,130.58,1.53151016]
[1725554949581,7.6564,130.61,130.58,1.53151016]
[1725554950081,20.0,130.6,130.57,26.8053]
[1725554951354,20.0,130.6,130.56,23.26244869]